bitfinex/quotes_SOLUSD_20260306
["timestamp","ask_amount","ask_price","bid_price","bid_amount"]
[1772789935067,11.44529931,87.373,87.33,0.6188296]
[1772789935443,0.60838266,87.372,87.33,0.6188296]
[1772789935642,0.75054423,87.372,87.33,0.6188296]
[1772789936346,0.60838266,87.376,87.33,0.6188296]
[1772789937677,0.71103122,87.39,87.332,0.6188296]
[1772789937874,11.44356698,87.386,87.332,0.6188296]
[1772789938046,0.61103122,87.385,87.332,0.6188296]
[1772789939862,0.61361114,87.383,87.334,0.6188296]
[1772789940239,0.1,87.39,87.337,0.6188296]
[1772789940443,0.1,87.39,87.338,0.6188296]
[1772789940956,0.61488135,87.413,87.341,0.6188296]
[1772789941354,0.61488135,87.408,87.341,0.6188296]
[1772789941865,0.61488135,87.408,87.346,0.61110231]
[1772789942066,0.61488135,87.408,87.347,0.61110231]
[1772789942549,0.1,87.42,87.347,0.61110231]
[1772789942550,0.61859585,87.406,87.347,0.61110231]
[1772789943961,0.6198144,87.404,87.352,0.61110231]
[1772789944276,0.6198144,87.403,87.352,0.61110231]
[1772789944448,9.15125813,87.4,87.352,0.61110231]
[1772789944643,0.62100497,87.399,87.352,0.61110231]
[1772789945544,0.62219054,87.397,87.353,40.67841538]
[1772789945743,0.62219054,87.397,87.354,0.61110231]
[1772789947090,0.62336258,87.406,87.354,0.61110231]
[1772789947250,0.1,87.41,87.354,0.61110231]
[1772789947251,0.1,87.41,87.357,0.61110231]
[1772789947668,0.62451714,87.409,87.362,0.61110231]
[1772789948570,0.1,87.41,87.362,0.61110231]
[1772789948758,0.1,87.41,87.362,0.28432314]
[1772789948948,0.1,87.41,87.363,0.61110231]
[1772789949650,0.1,87.41,87.361,3.69383402]
[1772789949651,0.1,87.41,87.366,0.61110231]
[1772789950569,0.1,87.42,87.37,0.61110231]
[1772789950770,0.72791002,87.42,87.37,0.61110231]
[1772789951267,0.1,87.42,87.37,0.61110231]
[1772789951450,0.72871142,87.42,87.37,0.61110231]
[1772789951650,0.62871142,87.419,87.372,0.61110231]
[1772789952067,0.62871142,87.409,87.371,11.44544528]
[1772789952269,0.62871142,87.409,87.372,0.61110231]
[1772789952770,0.62871142,87.409,87.371,11.44544528]
[1772789953859,0.63028749,87.407,87.367,0.61110231]
[1772789954259,11.4406004,87.408,87.367,0.61110231]
[1772789954864,0.63105559,87.407,87.367,0.61110231]
[1772789956175,0.63181727,87.405,87.368,11.44583829]
[1772789957854,0.63181727,87.405,87.355,11.44754164]
[1772789957855,0.6333095,87.399,87.355,11.44754164]
[1772789958064,0.6333095,87.379,87.348,16.86789892]
[1772789958264,0.6333095,87.379,87.345,11.44879418]
[1772789958468,0.6333095,87.379,87.34,11.44944555]
[1772789959564,0.63477086,87.369,87.332,11.45055649]
[1772789960570,0.63549212,87.367,87.333,0.61110231]
[1772789961278,0.63549212,87.367,87.326,11.45134324]
[1772789961471,0.63549212,87.367,87.326,12.06244555]
[1772789961669,0.63549212,87.367,87.327,0.61110231]
[1772789963174,0.63549212,87.367,87.329,0.61110231]
[1772789963373,0.63691009,87.376,87.329,0.61110231]
[1772789964064,11.44492131,87.375,87.329,0.61110231]
[1772789964380,12.08321271,87.375,87.329,0.61110231]
[1772789964781,0.6382914,87.374,87.329,0.61110231]
[1772789965572,0.6382914,87.374,87.331,0.61110231]
[1772789966165,0.63897012,87.391,87.332,0.61110231]
[1772789966477,0.63897012,87.391,87.335,0.61110231]
[1772789966885,0.6396407,87.41,87.339,0.61110231]
[1772789967185,0.1,87.42,87.345,0.61110231]
[1772789967363,11.43916082,87.419,87.345,0.61110231]
[1772789967563,0.1,87.42,87.35,0.61110231]
[1772789967766,0.64030806,87.419,87.351,0.61110231]
[1772789969282,9.14615949,87.41,87.351,0.61110231]
[1772789969474,0.64095458,87.409,87.351,0.61110231]
[1772789970582,0.64224755,87.407,87.356,0.61110231]
[1772789971372,0.64224755,87.407,87.357,0.61110231]
[1772789971587,0.63631034,87.416,87.357,0.61110231]
[1772789971825,0.63631034,87.416,87.317,0.62373172]
[1772789971826,0.61771671,87.369,87.317,0.62373172]
[1772789971969,9.14615949,87.35,87.281,0.67205964]
[1772789972170,9.14615949,87.34,87.291,0.67205964]
[1772789972388,9.14615949,87.33,87.291,0.67205964]
[1772789972575,0.28432314,87.35,87.29,4.22138434]
[1772789972770,85.86049385,87.351,87.29,3.5493247]
[1772789972771,9.14615949,87.32,87.29,3.5493247]
[1772789973066,9.14615949,87.31,87.273,0.67205964]
[1772789973495,9.14615949,87.31,87.273,12.13035716]
[1772789973678,9.14615949,87.31,87.263,11.4596106]
[1772789973881,9.14615949,87.31,87.264,0.67205964]
[1772789974887,11.45357294,87.309,87.266,0.67205964]
[1772789975484,4.82477569,87.345,87.266,0.67205964]
[1772789975485,28.62245832,87.344,87.266,0.67205964]
[1772789975689,0.28432314,87.329,87.266,0.67205964]
[1772789975994,9.14615949,87.32,87.266,0.67205964]
[1772789976194,9.14615949,87.3,87.257,0.67205964]
[1772789976571,28.62245832,87.344,87.257,0.67205964]
[1772789976572,0.28432314,87.319,87.258,0.67205964]
[1772789976995,9.14615949,87.31,87.26,0.67205964]
[1772789977901,11.4523924,87.318,87.26,0.67205964]
[1772789978079,11.4523924,87.318,87.263,0.67205964]
[1772789978896,0.28432314,87.327,87.263,0.67205964]
[1772789979102,9.14615949,87.34,87.267,3.69383402]
[1772789979322,9.14615949,87.36,87.269,0.67205964]
[1772789979491,0.28432314,87.359,87.269,0.67205964]
[1772789980774,28.61230329,87.375,87.274,0.67205964]
[1772789980975,57.21805801,87.385,87.28,0.67205964]
[1772789980976,0.28432314,87.368,87.28,0.67205964]
[1772789981304,0.28432314,87.368,87.281,0.67205964]
[1772789981497,40.05997549,87.369,87.281,0.67205964]
[1772789981806,11.44570728,87.369,87.287,0.67205964]
[1772789982014,9.14615949,87.34,87.287,0.67205964]
[1772789982186,9.14615949,87.32,87.276,12.1299633]
[1772789982389,9.14615949,87.32,87.277,0.67205964]
[1772789983084,11.45226124,87.319,87.278,11.4576411]
[1772789983282,11.45226124,87.319,87.279,0.67205964]
[1772789985403,11.45226124,87.319,87.281,0.67205964]
[1772789985605,11.45094985,87.329,87.281,0.67205964]
[1772789986303,11.44832797,87.349,87.284,0.95638278]
[1772789986478,11.44832797,87.349,87.285,0.67205964]
[1772789987400,11.44832797,87.349,87.28,154.67461042]
[1772789987401,9.14615949,87.35,87.29,0.67205964]
[1772789987781,0.28432314,87.358,87.29,0.67205964]
[1772789987981,9.14615949,87.34,87.29,0.67205964]
[1772789989089,9.14615949,87.35,87.29,0.67205964]
[1772789989410,0.28432314,87.349,87.29,0.67205964]
[1772789989607,9.14615949,87.34,87.292,0.67205964]
[1772789990492,9.16054873,87.32,87.276,0.67205964]
[1772789991704,40.08291436,87.319,87.277,11.45777237]
[1772789991907,11.45226124,87.319,87.278,0.67205964]
[1772789992791,9.16054873,87.31,87.278,0.67205964]
[1772789992991,0.02074688,87.318,87.278,0.67205964]
[1772789994010,0.02074688,87.318,87.28,0.67205964]
[1772789994621,0.02248156,87.309,87.274,11.45808903]
[1772789994790,9.16054873,87.28,87.243,0.67205964]
[1772789994994,9.16054873,87.28,87.245,0.67205964]
[1772789995696,9.16054873,87.29,87.245,0.67205964]
[1772789996014,9.16054873,87.29,87.244,40.11737196]
[1772789996015,11.45619722,87.289,87.247,0.67205964]
[1772789996390,11.47952439,87.289,87.247,0.67205964]
[1772789997813,0.02500208,87.288,87.247,0.67205964]
[1772789998009,11.45619722,87.289,87.249,0.67205964]
[1772789998215,9.16054873,87.29,87.249,0.67205964]
[1772789998422,0.28432314,87.295,87.249,0.67205964]
[1772789998627,9.16054873,87.29,87.249,0.67205964]
[1772790000313,28.63446156,87.308,87.251,0.67205964]
[1772790001613,11.45383531,87.307,87.251,0.67205964]
[1772790002613,11.45383531,87.307,87.24,0.2]
[1772790002614,9.16054873,87.3,87.253,0.67205964]
[1772790002824,9.16054873,87.29,87.253,0.67205964]
[1772790003726,9.16054873,87.27,87.241,0.67205964]
[1772790004024,9.16054873,87.28,87.241,0.67205964]
[1772790004223,0.03054383,87.289,87.241,0.67205964]
[1772790004526,9.16054873,87.27,87.242,11.46236904]
[1772790004703,9.16054873,87.28,87.243,0.67205964]
[1772790006121,11.45698475,87.283,87.243,0.67205964]
[1772790006418,0.0320353,87.295,87.243,0.67205964]
[1772790006604,11.48765778,87.299,87.245,0.67205964]
[1772790006915,9.16054873,87.29,87.245,0.67205964]
[1772790007898,9.16054873,87.29,87.24,0.2]
[1772790007899,9.16054873,87.27,87.24,11.66259843]
[1772790008208,9.16054873,87.27,87.241,0.67205964]
[1772790008723,11.49101913,87.279,87.243,0.67205964]
[1772790009218,9.16054873,87.27,87.243,0.67205964]
[1772790009616,9.16054873,87.26,87.24,0.2]
[1772790010719,11.46013591,87.259,87.24,0.2]
[1772790010924,9.16054873,87.27,87.241,0.67205964]
[1772790011423,9.16054873,87.25,87.24,0.2]
[1772790011627,9.16054873,87.25,87.24,0.16503666]
[1772790011999,9.16054873,87.25,87.211,11.46644345]
[1772790012224,9.16054873,87.24,87.212,0.68954131]
[1772790012415,9.16054873,87.25,87.212,0.68954131]
[1772790012616,11.46144941,87.249,87.214,0.68954131]
[1772790012919,9.16054873,87.24,87.212,0.68954131]
[1772790013100,0.28432314,87.248,87.212,0.68954131]
[1772790013300,11.46144941,87.249,87.212,0.68954131]
[1772790014935,40.11057229,87.259,87.214,0.68954131]
[1772790015428,11.46013591,87.259,87.214,0.68954131]
[1772790015725,28.64368206,87.28,87.214,0.68954131]
[1772790015906,11.45750982,87.279,87.215,0.68954131]
[1772790016608,9.16054873,87.27,87.215,0.68954131]
[1772790017326,11.45882272,87.269,87.216,40.13025132]
[1772790017624,11.45882272,87.269,87.217,0.68954131]
[1772790017935,40.10587952,87.269,87.217,0.68954131]
[1772790018622,11.45882272,87.269,87.217,0.68954131]
[1772790019430,11.45882272,87.269,87.202,57.33796736]
[1772790019431,11.46013591,87.259,87.219,0.68954131]
[1772790019609,9.16054873,87.25,87.219,0.68954131]
[1772790020005,0.28432314,87.258,87.219,0.68954131]
[1772790020722,9.16054873,87.25,87.219,0.68954131]
[1772790020921,0.28432314,87.258,87.219,0.68954131]
[1772790022011,0.28432314,87.256,87.221,0.68954131]
[1772790022334,0.28432314,87.256,87.175,45.8842912]
[1772790022335,9.16054873,87.24,87.211,0.68954131]
[1772790022522,9.16054873,87.25,87.212,0.68954131]
[1772790024036,11.46144941,87.249,87.214,0.68954131]
[1772790024829,9.16054873,87.24,87.212,11.46624442]
[1772790025010,9.16054873,87.24,87.213,0.68954131]
[1772790025331,40.11507294,87.249,87.213,0.68954131]
[1772790026041,9.16054873,87.23,87.197,0.68954131]
[1772790027321,40.11967124,87.239,87.197,0.68954131]
[1772790027725,9.16054873,87.23,87.197,0.68954131]
[1772790028333,9.16054873,87.24,87.199,0.68954131]
[1772790029536,9.16054873,87.23,87.199,0.68954131]
[1772790030232,9.16054873,87.24,87.199,0.68954131]
[1772790030533,0.28432314,87.238,87.188,5.32309312]
[1772790030835,0.28432314,87.238,87.18,0.2]
[1772790030836,40.11967124,87.239,87.192,0.68954131]
[1772790031049,0.28432314,87.243,87.192,0.68954131]
[1772790031335,3.69383402,87.272,87.191,11.46907364]
[1772790031336,11.45488493,87.299,87.199,0.68954131]
[1772790031541,40.09209726,87.299,87.199,0.68954131]
[1772790031730,0.28432314,87.289,87.199,0.68954131]
[1772790032041,0.28432314,87.289,87.195,0.28432314]
[1772790032042,9.16054873,87.29,87.207,3.69383402]
[1772790032341,40.38101343,87.289,87.214,0.68954131]
[1772790032652,3.69383402,87.312,87.213,3.69383402]
[1772790032653,9.25251313,87.309,87.216,0.68954131]
[1772790032944,9.25251313,87.309,87.227,0.68954131]
[1772790033241,9.25251313,87.309,87.227,1.83597532]
[1772790033536,9.25251313,87.309,87.229,0.68954131]
[1772790033726,9.16054873,87.3,87.229,0.68954131]
[1772790034315,11.45383531,87.307,87.23,40.12381061]
[1772790034517,0.28432314,87.306,87.234,0.68954131]
[1772790034829,0.28432314,87.306,87.235,0.68954131]
[1772790035141,9.25251313,87.309,87.235,0.68954131]
[1772790035338,11.45370412,87.308,87.235,0.68954131]
[1772790036234,9.25251313,87.309,87.235,0.68954131]
[1772790036430,9.25251313,87.309,87.239,3.69383402]
[1772790036636,9.25251313,87.309,87.24,0.68954131]
[1772790036824,0.28432314,87.308,87.24,0.68954131]
[1772790037340,9.25251313,87.309,87.24,0.68954131]
[1772790038528,40.37228757,87.308,87.242,0.68954131]
[1772790038743,11.45370412,87.308,87.243,0.68954131]
[1772790038947,9.25251313,87.309,87.243,0.68954131]
[1772790039242,11.45370412,87.308,87.243,0.68954131]
[1772790039417,0.28432314,87.307,87.243,0.68954131]
[1772790039618,11.45370412,87.308,87.243,0.68954131]
[1772790040343,40.08796443,87.308,87.243,0.68954131]
[1772790040536,0.28432314,87.307,87.243,0.68954131]
[1772790040736,40.08888277,87.306,87.244,40.11737196]
[1772790041044,0.28432314,87.305,87.245,0.68954131]
[1772790042524,9.16054873,87.29,87.245,0.68954131]
[1772790042926,9.16054873,87.28,87.246,11.46184352]
[1772790043127,9.16054873,87.27,87.237,11.463026]
[1772790044143,9.16054873,87.27,87.222,28.66235148]
[1772790044144,9.16054873,87.27,87.227,12.15378422]
[1772790044650,9.16054873,87.27,87.228,0.68954131]
[1772790044944,11.45882272,87.269,87.23,0.68954131]
[1772790046549,0.28432314,87.277,87.23,0.68954131]
[1772790047236,0.28432314,87.275,87.232,0.68954131]
[1772790047734,28.64020677,87.29,87.232,0.68954131]
[1772790047940,9.16054873,87.3,87.232,0.68954131]
[1772790048334,9.16054873,87.29,87.232,0.68954131]
[1772790048534,0.28432314,87.289,87.232,0.68954131]
[1772790049131,9.16054873,87.27,87.225,11.46460303]
[1772790049325,0.28432314,87.267,87.225,11.46460303]
[1772790049853,11.45895402,87.268,87.226,0.68954131]
[1772790050745,9.4,87.289,87.226,0.68954131]
[1772790050746,11.45777237,87.277,87.226,0.68954131]
[1772790051241,0.14216157,87.276,87.226,0.68954131]
[1772790051545,0.14216157,87.276,87.204,49.5629823]
[1772790051546,0.28432314,87.274,87.228,0.68954131]
[1772790052160,9.16941796,87.25,87.205,40.13520405]
[1772790052458,0.28432314,87.269,87.206,0.68954131]
[1772790052763,11.45803494,87.275,87.209,0.28432314]
[1772790052971,0.14216157,87.283,87.21,0.68954131]
[1772790053439,0.14216157,87.283,87.209,0.14216157]
[1772790053440,0.14216157,87.283,87.215,0.68954131]
[1772790053646,9.16941796,87.27,87.215,0.68954131]
[1772790053950,0.14216157,87.269,87.215,0.68954131]
[1772790054968,0.28432314,87.269,87.215,0.68954131]
[1772790055162,0.28432314,87.259,87.215,0.68954131]
[1772790055365,11.74577255,87.249,87.207,0.68954131]
[1772790055551,11.74577255,87.249,87.209,0.68954131]
[1772790055950,11.46144941,87.249,87.209,0.68954131]
[1772790057066,9.16941796,87.24,87.209,0.68954131]
[1772790057459,9.16941796,87.24,87.21,11.46657493]
[1772790057662,0.28432314,87.248,87.21,11.46657493]
[1772790058454,0.28432314,87.258,87.211,0.68954131]
[1772790059566,0.28432314,87.256,87.213,0.68954131]
[1772790060957,0.28432314,87.274,87.213,0.68954131]
[1772790061260,28.64514728,87.275,87.213,0.68954131]
[1772790061261,0.28432314,87.269,87.213,0.68954131]
[1772790061571,0.14216157,87.269,87.213,0.68954131]
[1772790061768,0.28432314,87.267,87.215,0.68954131]
[1772790061973,28.64176619,87.286,87.215,0.68954131]
[1772790062270,28.64176619,87.286,87.219,0.68954131]
[1772790062471,11.45750982,87.279,87.219,0.68954131]
[1772790062773,9.16941796,87.29,87.219,0.68954131]
[1772790063268,11.45648143,87.287,87.219,0.68954131]
[1772790063571,9.16941796,87.29,87.219,0.68954131]
[1772790064191,11.45737855,87.28,87.221,0.68954131]
[1772790065073,11.4569007,87.284,87.221,0.68954131]
[1772790065255,18.63607052,87.281,87.221,0.68954131]
[1772790065579,9.16941796,87.28,87.221,0.68954131]
[1772790065785,9.16941796,87.27,87.221,0.68954131]
[1772790066274,9.16941796,87.28,87.221,0.68954131]
[1772790066462,9.16941796,87.25,87.222,11.46499736]
[1772790066666,9.16941796,87.25,87.218,11.46550778]
[1772790067772,11.46144941,87.249,87.218,11.46550778]
[1772790068181,11.46144941,87.249,87.207,11.46696939]
[1772790068378,40.11507294,87.249,87.207,11.46696939]
[1772790068680,9.16941796,87.24,87.207,11.46696939]
[1772790069074,0.28432314,87.248,87.207,40.82393418]
[1772790069277,0.28432314,87.248,87.208,0.68954131]
[1772790069973,9.16941796,87.26,87.21,0.68954131]
[1772790072570,11.46013591,87.259,87.212,0.68954131]
[1772790072875,11.74314586,87.269,87.212,0.68954131]
[1772790073059,11.74314586,87.269,87.211,40.13255208]
[1772790073060,18.63601553,87.281,87.215,0.68954131]
[1772790073261,45.79353941,87.349,87.218,0.68954131]
[1772790073456,9.16941796,87.31,87.218,0.68954131]
[1772790073680,9.16941796,87.3,87.218,0.68954131]
[1772790074460,11.45488493,87.299,87.222,3.69383402]
[1772790074660,11.45488493,87.299,87.224,0.68954131]
[1772790075063,9.16941796,87.29,87.224,0.68954131]
[1772790075271,40.09209726,87.299,87.224,0.68954131]
[1772790075676,11.73802726,87.308,87.224,0.68954131]
[1772790076068,9.16941796,87.3,87.224,0.68954131]
[1772790076678,9.16941796,87.3,87.229,0.68954131]
[1772790076679,11.45488493,87.299,87.229,0.68954131]
[1772790076995,11.45488493,87.299,87.23,0.68954131]
[1772790077882,9.16941796,87.29,87.23,0.68954131]
[1772790078072,11.45488493,87.299,87.23,0.68954131]
[1772790078273,0.28432314,87.308,87.23,0.68954131]
[1772790078679,0.28432314,87.306,87.235,0.68954131]
[1772790078873,0.28432314,87.306,87.236,0.68954131]
[1772790079588,11.45383531,87.307,87.236,0.68954131]
[1772790080367,9.16941796,87.3,87.236,0.68954131]
[1772790080782,0.28432314,87.306,87.232,102.0]
[1772790080783,11.45488493,87.299,87.241,0.68954131]
[1772790081172,0.28432314,87.303,87.241,0.68954131]
[1772790083087,0.28432314,87.303,87.242,97.43013685]
[1772790083088,11.4544913,87.302,87.242,97.43013685]
[1772790083267,11.4544913,87.302,87.243,0.68954131]
[1772790083870,9.16941796,87.3,87.243,0.68954131]
[1772790084070,9.16941796,87.29,87.243,0.68954131]
[1772790084863,0.28432314,87.289,87.243,0.68954131]
[1772790085277,11.73920807,87.299,87.245,0.68954131]
[1772790085586,40.3764204,87.299,87.245,0.68954131]
[1772790085794,0.28432314,87.289,87.245,0.68954131]
[1772790086866,9.16941796,87.29,87.245,0.68954131]
[1772790087177,40.09209726,87.299,87.245,0.68954131]
[1772790087379,0.28432314,87.298,87.247,0.68954131]
[1772790088368,9.16941796,87.29,87.246,40.11645232]
[1772790088581,9.16941796,87.29,87.247,0.68954131]
[1772790089176,0.28432314,87.298,87.247,0.68954131]
[1772790089492,40.09209726,87.299,87.249,0.68954131]
[1772790089493,0.28432314,87.296,87.249,0.68954131]
[1772790091396,11.45514737,87.297,87.251,0.68954131]
[1772790091592,11.45370412,87.308,87.251,0.68954131]
[1772790092604,3.66580186,87.3,87.251,0.68954131]
[1772790093095,0.28432314,87.299,87.251,0.68954131]
[1772790093495,0.28432314,87.297,87.253,0.68954131]
[1772790094202,3.66580186,87.29,87.252,11.46105533]
[1772790094412,0.28432314,87.297,87.253,0.68954131]
[1772790095606,45.79295321,87.35,87.255,0.68954131]
[1772790095784,3.66580186,87.31,87.255,0.68954131]
[1772790095988,0.28432314,87.309,87.255,0.68954131]
[1772790096307,3.66580186,87.3,87.255,0.68954131]
[1772790097596,0.28432314,87.309,87.257,0.68954131]
[1772790098806,0.28432314,87.307,87.259,0.68954131]
[1772790099309,11.45370412,87.308,87.259,0.68954131]
[1772790100009,3.66580186,87.3,87.259,0.68954131]
[1772790100503,11.45370412,87.308,87.259,0.68954131]
[1772790100808,0.14216157,87.307,87.259,0.68954131]
[1772790100983,0.14216157,87.307,87.261,0.68954131]
[1772790101189,0.28432314,87.307,87.261,0.68954131]
[1772790101604,3.66580186,87.3,87.261,0.68954131]
[1772790103407,40.09209726,87.299,87.262,11.45974192]
[1772790103603,40.09209726,87.299,87.263,0.68954131]
[1772790104102,40.09209726,87.299,87.262,11.45974192]
[1772790104103,0.28432314,87.298,87.262,11.45974192]
[1772790104306,3.66580186,87.29,87.262,11.45974192]
[1772790104506,0.28432314,87.298,87.262,11.45974192]
[1772790105303,3.66580186,87.32,87.263,0.68954131]
[1772790105507,28.62816475,87.327,87.265,0.68954131]
[1772790105995,0.28432314,87.326,87.265,0.68954131]
[1772790106195,11.45094985,87.329,87.266,0.68954131]
[1772790106815,0.14216157,87.328,87.266,0.68954131]
[1772790107298,0.28432314,87.328,87.266,0.68954131]
[1772790107489,40.07924238,87.327,87.267,40.10679866]
[1772790107694,3.66580186,87.32,87.268,0.68954131]
[1772790107897,3.66580186,87.31,87.268,0.68954131]
[1772790108099,3.66580186,87.3,87.268,0.68954131]
[1772790108298,3.66580186,87.31,87.268,0.68954131]
[1772790109812,15.11928611,87.31,87.27,0.68954131]
[1772790110516,15.11842959,87.31,87.27,0.68954131]
[1772790110823,11.45348425,87.31,87.27,0.68954131]
[1772790111320,11.45267036,87.316,87.27,0.68954131]
[1772790111817,3.66494534,87.32,87.271,40.1049604]
[1772790112123,3.66494534,87.32,87.272,0.68954131]
[1772790112294,0.28432314,87.328,87.272,0.68954131]
[1772790112704,9.15939793,87.32,87.272,0.68954131]
[1772790114905,0.28432314,87.318,87.274,0.68954131]
[1772790115215,9.15939793,87.31,87.274,0.68954131]
[1772790115521,0.28432314,87.318,87.274,0.68954131]
[1772790117002,11.45252356,87.317,87.276,0.68954131]
[1772790117705,0.28432314,87.316,87.276,0.68954131]
[1772790118020,11.45252356,87.317,87.276,0.68954131]
[1772790118201,11.45094985,87.329,87.276,0.68954131]
[1772790118522,11.45032048,87.334,87.277,0.68954131]
[1772790118818,28.6216141,87.347,87.277,0.68954131]
[1772790119011,11.44972305,87.339,87.282,0.68954131]
[1772790119214,11.45068761,87.331,87.282,0.68954131]
[1772790120001,40.07740664,87.331,87.282,0.68954131]
[1772790120427,9.15939793,87.32,87.282,0.68954131]
[1772790120627,9.15939793,87.31,87.272,0.68954131]
[1772790121228,11.45357294,87.309,87.273,11.45829752]
[1772790121728,9.15939793,87.3,87.254,0.68954131]
[1772790122598,0.28432314,87.299,87.254,0.68954131]
[1772790123103,11.45501615,87.298,87.256,0.68954131]
[1772790123305,0.28432314,87.297,87.256,0.68954131]
[1772790124043,9.15939793,87.29,87.256,0.68954131]
[1772790124325,0.28432314,87.289,87.248,0.68954131]
[1772790125221,9.15939793,87.29,87.217,45.86254592]
[1772790125222,11.45632847,87.288,87.25,0.68954131]
[1772790125643,0.28432314,87.309,87.25,0.68954131]
[1772790125922,9.15939793,87.31,87.25,0.68954131]
[1772790126327,0.14216157,87.309,87.25,0.68954131]
[1772790126721,0.28432314,87.309,87.25,0.68954131]
[1772790127122,11.45331057,87.311,87.25,0.68954131]
[1772790127318,11.45331057,87.311,87.24,0.28432314]
[1772790127319,40.3672375,87.319,87.252,0.68954131]
[1772790128440,9.15939793,87.31,87.252,0.68954131]
[1772790129348,0.28432314,87.307,87.254,0.68954131]
[1772790129711,0.28432314,87.299,87.254,0.68954131]
[1772790131532,9.15939793,87.29,87.255,11.46066128]
[1772790132120,9.15939793,87.29,87.255,12.15020259]
[1772790132315,9.15939793,87.29,87.256,0.68954131]
[1772790133835,40.38101343,87.289,87.248,0.68954131]
[1772790134034,9.15939793,87.28,87.24,0.68954131]
[1772790136037,11.45619722,87.289,87.242,0.68954131]
[1772790137346,11.45488493,87.299,87.242,0.68954131]
[1772790137828,0.28432314,87.298,87.242,0.68954131]
[1772790138031,9.15939793,87.29,87.244,0.68954131]
[1772790138331,0.28432314,87.296,87.244,0.68954131]
[1772790141443,0.28432314,87.294,87.246,0.68954131]
[1772790141936,9.15939793,87.29,87.246,0.68954131]
[1772790143942,11.45619722,87.289,87.248,0.68954131]
[1772790145929,0.14216157,87.299,87.25,0.68954131]
[1772790146643,9.15939793,87.29,87.25,0.68954131]
[1772790148936,9.15939793,87.29,87.225,61.0166005]
[1772790148937,0.28432314,87.299,87.252,0.68954131]
[1772790149460,40.08888277,87.306,87.252,0.68954131]
[1772790149631,11.4535271,87.31,87.252,0.68954131]
[1772790150236,28.62859368,87.326,87.253,0.68954131]
[1772790150552,9.15939793,87.32,87.253,0.68954131]
[1772790150734,0.14216157,87.312,87.253,0.68954131]
[1772790151135,11.73750254,87.312,87.255,0.68954131]
[1772790151540,11.45266864,87.316,87.256,0.68954131]
[1772790151740,28.62859368,87.326,87.256,0.68954131]
[1772790151741,9.15939793,87.32,87.256,0.68954131]
[1772790152033,28.62859368,87.326,87.256,0.68954131]
[1772790152034,11.4524978,87.318,87.256,0.68954131]
[1772790152236,11.45291456,87.315,87.256,0.68954131]
[1772790153250,11.4531794,87.312,87.257,40.11139507]
[1772790153551,11.45269185,87.316,87.259,0.68954131]
[1772790154555,11.4531794,87.312,87.259,0.68954131]
[1772790155750,11.4531794,87.312,87.261,0.68954131]
[1772790155956,3.66405658,87.31,87.261,0.68954131]
[1772790156461,40.0861279,87.312,87.261,0.68954131]
[1772790156633,3.66405658,87.31,87.261,0.68954131]
[1772790158254,11.45357294,87.309,87.262,40.10909673]
[1772790158442,11.45357294,87.309,87.263,0.68954131]
[1772790160059,40.08750529,87.309,87.263,0.68954131]
[1772790161356,0.28432314,87.308,87.264,11.45947928]
[1772790161545,3.66405658,87.3,87.264,11.45947928]
[1772790162563,3.66405658,87.3,87.265,0.68954131]
[1772790162761,0.28432314,87.308,87.265,0.68954131]
[1772790163446,0.28432314,87.306,87.267,0.68954131]
[1772790164462,11.4540977,87.305,87.269,0.68954131]
[1772790165163,11.45366401,87.309,87.269,0.68954131]
[1772790165368,3.66405658,87.3,87.268,11.45895402]
[1772790166985,11.45488493,87.299,87.262,11.45974192]
[1772790167146,11.45488493,87.299,87.263,0.68954131]
[1772790167548,3.66405658,87.29,87.258,11.46017623]
[1772790168369,0.28432314,87.298,87.259,0.68954131]
[1772790168949,0.28432314,87.296,87.26,11.46000458]
[1772790169165,0.28432314,87.296,87.261,0.68954131]
[1772790170973,3.66405658,87.29,87.261,0.68954131]
[1772790171771,0.28432314,87.294,87.261,0.68954131]
[1772790172174,0.28432314,87.294,87.262,11.45974192]
[1772790172366,0.28432314,87.294,87.263,0.68954131]
[1772790174461,3.66624805,87.31,87.265,0.68954131]
[1772790174661,11.45331057,87.311,87.265,0.68954131]
[1772790174878,3.66624805,87.31,87.265,0.68954131]
[1772790175274,11.45331057,87.311,87.265,0.68954131]
[1772790175275,3.66624805,87.3,87.265,0.68954131]
[1772790176483,0.14216157,87.297,87.265,0.68954131]
[1772790176778,40.09255652,87.298,87.266,11.45921664]
[1772790176981,4.82477569,87.333,87.267,0.68954131]
[1772790177161,3.66624805,87.31,87.267,0.68954131]
[1772790177477,11.4531794,87.312,87.267,0.68954131]
[1772790177981,3.66624805,87.31,87.267,0.68954131]
[1772790178362,11.4531794,87.312,87.267,0.68954131]
[1772790178562,3.66624805,87.31,87.269,0.68954131]
[1772790179665,3.66624805,87.3,87.269,0.68954131]
[1772790180085,0.28432314,87.309,87.269,0.68954131]
[1772790180858,0.28432314,87.307,87.271,0.68954131]
[1772790181584,3.66624805,87.3,87.271,0.68954131]
[1772790182285,0.28432314,87.307,87.271,0.68954131]
[1772790183479,0.28432314,87.305,87.271,0.68954131]
[1772790183783,40.0861279,87.312,87.273,0.68954131]
[1772790185593,40.0861279,87.312,87.275,0.68954131]
[1772790187778,40.0861279,87.312,87.277,0.68954131]